fUSD/lending_fUSD_20251030
["ID","MTS","AMOUNT","RATE_DAILY","PERIOD"]
[392695700,1761830734560,150.0,0.00013488,2]
[392695701,1761830734641,150.0,0.00013488,2]
[392695702,1761830736006,150.00000001,0.00013488,2]
[392695703,1761830824925,-152.8,0.0001441,2]
[392695704,1761830824949,-152.8,0.00014799,2]
[392695705,1761830824974,-168.0,0.00014826,2]
[392695706,1761830824997,-1396.91970162,0.00014891,2]
[392695707,1761830825021,-1200.0,0.00014898,2]
[392695708,1761830825043,-300.0,0.00014898,2]
[392695709,1761830825064,-1200.0,0.00014899,2]
[392695710,1761830825086,-300.0,0.00014899,2]
[392695711,1761830825108,-150.0,0.00014899,2]
[392695712,1761830825132,-212.3640464,0.000149,2]
[392695713,1761830825501,-1791.3179,0.000149,2]
[392695714,1761830825525,-1736.7171,0.000149,2]
[392695715,1761830825546,-6625.2234,0.000149,2]
[392695716,1761830825569,-5441.23260995,0.000149,2]
[392695717,1761830825593,-168.0,0.00014968,2]
[392695718,1761830825616,-197.22030238,0.00014979,2]
[392695719,1761830825642,-161.79780365,0.00014979,2]
[392695720,1761830825665,-558.91851061,0.00014979,2]
[392695721,1761830825693,-551.27692871,0.00014979,2]
[392695722,1761830825716,-15561.41169668,0.0001498,2]
[392695723,1761830867095,150.0,0.00016,120]
[392695732,1761830922287,1282.19539311,0.0001,2]
[392695823,1761830981203,-498.60150792,0.00014601,2]
[392695824,1761830981228,-200.0,0.00014797,2]
[392695825,1761830981253,-2301.39849208,0.00014826,2]
[392695834,1761831032196,-901.09157161,0.00014826,2]
[392695835,1761831032206,-195.0,0.00014838,2]
[392695836,1761831032215,-360.9695012,0.0001485,2]
[392695837,1761831032423,-116.0915388,0.0001485,2]
[392695838,1761831032432,-971.1946612,0.00014892,2]
[392695839,1761831032443,-425.72504035,0.00014892,2]
[392695840,1761831032453,-1396.91970155,0.00014893,2]
[392695841,1761831032463,-139.85252706,0.00014894,2]
[392695842,1761831032474,-676.29383263,0.00014894,2]
[392695843,1761831032506,-580.77334186,0.00014894,2]
[392695844,1761831032515,-1396.91970155,0.00014895,2]
[392695845,1761831032525,-1200.0,0.00014895,2]
[392695846,1761831032534,-1396.91970155,0.00014896,2]
[392695847,1761831032545,-1396.91970155,0.00014897,2]
[392695848,1761831032554,-300.0,0.00014897,2]
[392695849,1761831032564,-300.0,0.00014897,2]
[392695850,1761831032575,-1396.91970155,0.00014898,2]
[392695851,1761831032584,-1396.91970155,0.00014899,2]
[392695852,1761831032593,-2500.0,0.000149,2]
[392695853,1761831032603,-1396.91970155,0.000149,2]
[392695854,1761831032612,-150.0,0.00014978,2]
[392695855,1761831032622,-500.0,0.00014978,2]
[392695856,1761831032631,-500.0,0.00014978,2]
[392695857,1761831032640,-500.0,0.00014978,2]
[392695858,1761831032653,-500.0,0.00014978,2]
[392695859,1761831032663,-500.0,0.00014978,2]
[392695861,1761831032673,-500.0,0.00014978,2]
[392695863,1761831032682,-500.0,0.00014978,2]
[392695865,1761831032691,-260.17185054,0.00014978,2]
[392695866,1761831032907,-1.28851,0.00014978,2]
[392695871,1761831038115,-238.53963946,0.00014978,2]
[392695873,1761831038125,-72.0944297,0.00014978,2]
[392695875,1761831038284,-427.9055703,0.00014978,2]
[392695876,1761831038296,-500.0,0.00014978,2]
[392695877,1761831038306,-500.0,0.00014978,2]
[392695878,1761831038315,-500.0,0.00014978,2]
[392695879,1761831038325,-500.0,0.00014978,2]
[392695880,1761831038334,-500.0,0.00014978,2]
[392695881,1761831038344,-500.0,0.00014978,2]
[392695882,1761831038354,-214.20679855,0.00014978,2]
[392695883,1761831038363,-500.0,0.00014978,2]
[392695884,1761831038373,-500.0,0.00014978,2]
[392695885,1761831038383,-639.9,0.00014979,2]
[392695886,1761831038393,-82985.64079891,0.0001498,2]
[392695890,1761831038431,-314184.17524564,0.0001498,2]
[392695891,1761831038441,-477.06105,0.0001498,2]
[392695893,1761831038451,-151.0,0.00014991,2]
[392695895,1761831038461,-151.0,0.00014991,2]
[392695897,1761831038471,-151.0,0.00014991,2]
[392695899,1761831038480,-151.0,0.00014991,2]
[392695901,1761831038489,-151.0,0.00014991,2]
[392695903,1761831038499,-151.0,0.00014991,2]
[392695905,1761831038508,-151.0,0.00014991,2]
[392695907,1761831038517,-151.0,0.00014991,2]
[392695910,1761831038527,-151.0,0.00014991,2]
[392695913,1761831038538,-151.0,0.00014991,2]
[392695916,1761831038551,-500.0,0.00014991,2]
[392695919,1761831038560,-553.64373807,0.00014991,2]
[392695922,1761831038569,-277.35679052,0.00014991,2]
[392695925,1761831038578,-151.0,0.00014991,2]
[392695928,1761831038588,-151.0,0.00014991,2]
[392695931,1761831038597,-500.0,0.00014999,2]
[392695934,1761831038607,-500.0,0.00014999,2]
[392695936,1761831038616,-500.0,0.00014999,2]
[392695938,1761831038626,-500.0,0.00014999,2]
[392695940,1761831038636,-500.0,0.00014999,2]
[392695941,1761831038646,-500.0,0.00014999,2]
[392695943,1761831038655,-500.0,0.00014999,2]
[392695944,1761831038665,-500.0,0.00014999,2]
[392695945,1761831038675,-500.0,0.00014999,2]
[392695946,1761831038685,-500.0,0.00014999,2]
[392695947,1761831038695,-500.0,0.00014999,2]
[392695948,1761831038705,-652.85,0.00014999,2]
[392695949,1761831038716,-4458.28082449,0.00014999,2]
[392695950,1761831038726,-639.9,0.00014999,2]
[392695951,1761831038736,-639.9,0.00014999,2]
[392695952,1761831038746,-639.9,0.00014999,2]
[392695953,1761831038756,-639.9,0.00014999,2]
[392695954,1761831038766,-639.9,0.00014999,2]
[392695955,1761831038775,-639.9,0.00014999,2]
[392695956,1761831038785,-639.9,0.00014999,2]
[392695957,1761831038798,-639.9,0.00014999,2]
[392695958,1761831038807,-639.9,0.00014999,2]
[392695959,1761831038816,-639.9,0.00014999,2]
[392695960,1761831038826,-639.9,0.00014999,2]
[392695961,1761831038835,-639.9,0.00014999,2]
[392695962,1761831038845,-639.9,0.00014999,2]
[392695963,1761831038854,-639.9,0.00014999,2]
[392695964,1761831038864,-639.9,0.00014999,2]
[392695965,1761831038873,-639.9,0.00014999,2]
[392695966,1761831038882,-639.9,0.00014999,2]
[392695967,1761831038891,-639.9,0.00014999,2]
[392695968,1761831038901,-639.9,0.00014999,2]
[392695969,1761831038910,-639.9,0.00014999,2]
[392695970,1761831038919,-639.9,0.00014999,2]
[392695971,1761831038929,-639.9,0.00014999,2]
[392695972,1761831038938,-640.01840689,0.00014999,2]
[392695973,1761831038948,-2702.0,0.00015,2]
[392695974,1761831038958,-2906073.56382259,0.00015,2]
[392695975,1761831038968,-25236.87852053,0.00015,2]
[392695976,1761831038978,-79770.35058127,0.00015,2]
[392695977,1761831038992,-150.0,0.00015,2]
[392695978,1761831039002,-596.63174061,0.00015,2]
[392695979,1761831039012,-150.0,0.00015,2]
[392695980,1761831039021,-593.57895976,0.00015,2]
[392695981,1761831039032,-1168.7774268,0.00015,2]
[392695982,1761831039041,-900.0,0.00015,2]
[392695983,1761831039055,-151.0,0.00015,2]
[392695984,1761831039066,-800.0,0.00015,2]
[392695985,1761831039075,-913.1219577,0.00015,2]
[392695986,1761831039085,-150.0,0.00015,2]
[392695987,1761831039095,-1427.27023856,0.00015,2]
[392695988,1761831039105,-150.0,0.00015,2]
[392695989,1761831039114,-5026.44422001,0.00015,2]
[392695990,1761831039124,-150.0,0.00015,2]
[392695991,1761831039133,-632.67403499,0.00015,2]
[392695992,1761831039143,-151.0,0.00015,2]
[392695993,1761831039154,-331.01559261,0.00015,2]
[392695994,1761831039165,-355.4397558,0.00015,2]
[392695995,1761831039175,-650.0156297,0.00015,2]
[392695996,1761831039189,-955.865,0.00015,2]
[392695997,1761831039202,-50926.2969244,0.00015,2]
[392695998,1761831039211,-150.0,0.00015,2]
[392695999,1761831039221,-150.0,0.00015,2]
[392696000,1761831039231,-150.0,0.00015,2]
[392696001,1761831039240,-150.0,0.00015,2]
[392696002,1761831039249,-212.93440763,0.00015,2]
[392696003,1761831039259,-92224.46288763,0.00015,2]
[392696004,1761831039269,-1811950.10760072,0.00015,2]
[392696006,1761831040256,-1507445.36765564,0.00015,2]
[392696007,1761831041350,-9212.04452397,0.00015,2]
[392696008,1761831041361,-46119.04040345,0.00015,2]
[392696009,1761831041372,-96218.16077211,0.00015,2]
[392696010,1761831041386,-542.6,0.00015,2]
[392696011,1761831041401,-383.01856,0.00015,2]
[392696012,1761831041412,-543.7,0.00015,2]
[392696065,1761831044595,-19313.53124119,0.00015,2]
[392696073,1761831044775,-8963.44774733,0.00015,2]
[392696074,1761831044841,-403.66308411,0.00015,2]
[392696089,1761831046201,-10860.0,0.00015,2]
[392696090,1761831046338,-13900.57737839,0.00015,2]
[392696093,1761831055837,150.0,0.00016,120]
[392696094,1761831179807,629.0,0.0003135,120]
[392696095,1761831245215,150.0,0.00016,120]
[392696096,1761831374335,280.11,0.000315,120]
[392696097,1761831435196,150.0,0.00016,120]
[392696098,1761831459850,641.12,0.00013699,2]
[392696101,1761831486203,200.0,0.000142,5]
[392696102,1761831488314,500.0,0.000143,5]
[392696103,1761831490525,700.0,0.000144,5]
[392696104,1761831492519,1000.0,0.000145,5]
[392696105,1761831494879,1200.0,0.000146,5]
[392696106,1761831496998,200.0,0.000147,5]
[392696107,1761831499094,200.0,0.000148,5]
[392696108,1761831501216,200.0,0.000149,5]
[392696112,1761831628024,150.0,0.00016,120]
[392696113,1761831657500,2600.0,0.00031507,120]
[392696114,1761831793307,500.0,0.00031507,120]
[392696115,1761831796412,2077.449879,0.00031507,120]
[392696116,1761831803030,500.0,0.00031507,120]
[392696117,1761831816891,150.0,0.00016,120]
[392696118,1761831911196,150.0,0.00013488,2]
[392696119,1761831911305,150.0,0.00013488,2]
[392696120,1761831911372,150.0,0.00013862,2]
[392696121,1761831913889,150.0,0.00013488,2]
[392696122,1761831913926,150.0,0.00013987,2]
[392696123,1761831917896,150.0,0.00013488,2]
[392696124,1761831917954,150.0,0.00013987,2]
[392696125,1761831919660,150.0,0.00013488,2]
[392696126,1761831923318,150.0,0.00013488,2]
[392696127,1761831931164,150.0,0.00013488,2]
[392696128,1761831931309,150.0,0.00013488,2]
[392696129,1761831932653,150.0,0.00013488,2]
[392696130,1761831932714,150.0,0.00013987,2]
[392696131,1761831958853,160.0,0.000155,3]
[392696132,1761831963798,160.0,0.000155,3]
[392696133,1761832005915,274.62,0.00016,120]
[392696134,1761832019290,160.0,0.000315,120]
[392696135,1761832020915,160.0,0.000315,120]
[392696136,1761832053794,200.0,0.000142,5]
[392696139,1761832055900,500.0,0.000143,5]
[392696140,1761832058578,800.0,0.000144,5]
[392696141,1761832060100,1100.0,0.000145,5]
[392696142,1761832062222,1400.0,0.000146,5]
[392696143,1761832064310,200.0,0.000147,5]
[392696144,1761832066419,200.0,0.000148,5]
[392696145,1761832068536,200.0,0.000149,5]
[392696146,1761832103992,163.6092921,0.00031,120]
[392696176,1761832231446,-150.0,0.00014237,2]
[392696177,1761832231455,-195.51780687,0.00014362,2]
[392696178,1761832231466,-54.48219313,0.00014362,2]
[392696179,1761832231475,-150.0,0.00014487,2]
[392696180,1761832231484,-150.0,0.00014487,2]
[392696181,1761832231493,-150.0,0.00014487,2]
[392696182,1761832231502,-4.19642259,0.00014612,2]
[392696183,1761832231514,-145.80357741,0.00014612,2]
[392696184,1761832231523,-882.49112941,0.0001485,2]
[392696185,1761832231532,-397.55087,0.0001485,2]
[392696186,1761832231542,-1200.0,0.0001489,2]
[392696187,1761832231551,-277.35679052,0.00014891,2]
[392696188,1761832231561,-2720.51162224,0.00014891,2]
[392696189,1761832231572,-1891.0,0.00014891,2]
[392696190,1761832231586,-1188.48837776,0.00014891,2]
[392696191,1761832231596,-168.0,0.00014895,2]
[392696192,1761832231608,-300.0,0.00014897,2]
[392696193,1761832231618,-150.0,0.00014898,2]
[392696194,1761832231627,-500.0,0.00014899,2]
[392696195,1761832231636,-500.0,0.00014899,2]
[392696196,1761832231647,-120.19039434,0.00014899,2]
[392696197,1761832231667,-379.80960566,0.00014899,2]
[392696198,1761832231677,-286.19238882,0.00014899,2]
[392696199,1761832231688,-152.15828757,0.00014899,2]
[392696200,1761832231696,-500.0,0.00014899,2]
[392696201,1761832231707,-213.36104707,0.00014899,2]
[392696202,1761832231720,-286.63895293,0.00014899,2]
[392696204,1761832231730,-500.0,0.00014899,2]
[392696206,1761832231738,-299.41754707,0.00014899,2]
[392696208,1761832231749,-200.58245293,0.00014899,2]
[392696210,1761832231758,-500.0,0.00014899,2]
[392696212,1761832231767,-500.0,0.00014899,2]
[392696213,1761832231776,-500.0,0.00014899,2]
[392696215,1761832231786,-160.0,0.00014899,2]
[392696217,1761832231797,-37.56754707,0.00014899,2]
[392696285,1761832237347,-462.43245293,0.00014899,2]
[392696287,1761832237357,-603.66254412,0.00014899,2]
[392696288,1761832237367,-500.0,0.00014899,2]
[392696289,1761832237377,-500.0,0.00014899,2]
[392696290,1761832237387,-500.0,0.00014899,2]
[392696291,1761832237396,-500.0,0.00014899,2]
[392696292,1761832237406,-500.0,0.00014899,2]
[392696293,1761832237416,-500.0,0.00014899,2]
[392696294,1761832237426,-500.0,0.00014899,2]
[392696295,1761832237437,-500.0,0.00014899,2]
[392696296,1761832237446,-500.0,0.00014899,2]
[392696297,1761832237456,-500.0,0.00014899,2]
[392696298,1761832237466,-500.0,0.00014899,2]
[392696299,1761832237476,-31433.90500315,0.000149,2]
[392696300,1761832237489,-3294.6,0.000149,2]
[392696301,1761832237501,-20698.23034558,0.000149,2]
[392696302,1761832237511,-5800.0,0.000149,2]
[392696303,1761832237520,-160.0,0.000149,2]
[392696304,1761832237530,-160.0,0.000149,2]
[392696305,1761832237539,-5465.77357057,0.000149,2]
[392696306,1761832237549,-301.34546881,0.00014973,2]
[392696307,1761832237558,-500.0,0.00014973,2]
[392696308,1761832237567,-555.32509067,0.00014973,2]
[392696309,1761832237576,-168.0,0.00014974,2]
[392696310,1761832237587,-500.0,0.00014979,2]
[392696311,1761832237600,-397.55088,0.0001498,2]
[392696312,1761832237611,-211.181,0.00014982,2]
[392696313,1761832237620,-150.0,0.00014986,2]
[392696315,1761832237629,-150.0,0.00014986,2]
[392696317,1761832237638,-150.0,0.00014986,2]
[392696318,1761832237647,-150.0,0.00014986,2]
[392696319,1761832237656,-150.0,0.00014986,2]
[392696320,1761832237665,-1117.16435527,0.0001499,2]
[392696321,1761832237674,-1117.16435527,0.0001499,2]
[392696322,1761832237690,-1117.16435527,0.0001499,2]
[392696323,1761832237700,-696.26,0.00014991,2]
[392696324,1761832237710,-955.865,0.00014991,2]
[392696325,1761832237720,-200.0,0.00014991,2]
[392696326,1761832237729,-500.0,0.00014991,2]
[392696327,1761832237739,-500.0,0.00014991,2]
[392696328,1761832237749,-193.81586442,0.00014991,2]
[392696329,1761832237759,-427.0,0.00014991,2]
[392696330,1761832237768,-500.0,0.00014991,2]
[392696331,1761832237778,-151.0,0.00014991,2]
[392696333,1761832237787,-151.0,0.00014991,2]
[392696334,1761832237797,-151.0,0.00014991,2]
[392696335,1761832237806,-151.0,0.00014991,2]
[392696336,1761832237816,-151.0,0.00014991,2]
[392696337,1761832237826,-151.0,0.00014991,2]
[392696338,1761832237836,-151.0,0.00014991,2]
[392696339,1761832237846,-151.0,0.00014991,2]
[392696340,1761832237856,-151.0,0.00014991,2]
[392696341,1761832237865,-151.0,0.00014991,2]
[392696342,1761832237875,-151.0,0.00014991,2]
[392696343,1761832237885,-151.0,0.00014991,2]
[392696344,1761832237895,-151.0,0.00014991,2]
[392696345,1761832237904,-209.40437684,0.00014991,2]
[392696347,1761832237915,-151.0,0.00014991,2]
[392696349,1761832237924,-151.0,0.00014991,2]
[392696350,1761832237934,-151.0,0.00014991,2]
[392696351,1761832237943,-151.0,0.00014991,2]
[392696352,1761832237952,-151.0,0.00014991,2]
[392696353,1761832237962,-151.0,0.00014991,2]
[392696354,1761832237971,-151.0,0.00014991,2]
[392696355,1761832237981,-151.0,0.00014991,2]
[392696356,1761832237991,-151.0,0.00014991,2]
[392696357,1761832238001,-151.0,0.00014991,2]
[392696358,1761832238010,-151.0,0.00014991,2]
[392696359,1761832238019,-170.13932674,0.00014991,2]
[392696360,1761832238029,-151.0,0.00014991,2]
[392696361,1761832238038,-151.0,0.00014991,2]
[392696362,1761832238048,-553.64373807,0.00014991,2]
[392696363,1761832238057,-150.36784563,0.00014991,2]
[392696364,1761832238067,-150.0,0.00014991,2]
[392696365,1761832238076,-500.0,0.00014991,2]
[392696366,1761832238088,-500.0,0.00014991,2]
[392696367,1761832238098,-150.0,0.00014991,2]
[392696368,1761832238107,-150.0,0.00014991,2]
[392696369,1761832238116,-500.0,0.00014991,2]
[392696370,1761832238126,-259.26462688,0.00014991,2]
[392696371,1761832238136,-150.0,0.00014991,2]
[392696372,1761832238146,-500.0,0.00014991,2]
[392696373,1761832238156,-500.0,0.00014991,2]
[392696374,1761832238166,-532.71336423,0.00014998,2]
[392696375,1761832238176,-500.0,0.00014999,2]
[392696376,1761832238186,-500.0,0.00014999,2]
[392696377,1761832238196,-150.0,0.00014999,2]
[392696378,1761832238206,-202.40640861,0.00014999,2]
[392696379,1761832238216,-150.0,0.00014999,2]
[392696380,1761832238226,-150.0,0.00014999,2]
[392696381,1761832238240,-150.0,0.00014999,2]
[392696382,1761832238250,-212.93440763,0.00014999,2]
[392696383,1761832238259,-613.24,0.00014999,2]
[392696384,1761832238269,-613.24,0.00014999,2]
[392696385,1761832238279,-613.24,0.00014999,2]
[392696386,1761832238289,-613.24,0.00014999,2]
[392696387,1761832238298,-613.24,0.00014999,2]
[392696388,1761832238308,-613.24,0.00014999,2]
[392696389,1761832238318,-613.24,0.00014999,2]
[392696390,1761832238328,-613.24,0.00014999,2]
[392696391,1761832238340,-613.24,0.00014999,2]
[392696392,1761832238349,-613.24,0.00014999,2]
[392696393,1761832238359,-613.24,0.00014999,2]
[392696394,1761832238368,-613.24,0.00014999,2]
[392696395,1761832238378,-613.24,0.00014999,2]
[392696396,1761832238388,-613.24,0.00014999,2]
[392696397,1761832238398,-613.24,0.00014999,2]
[392696398,1761832238408,-613.24,0.00014999,2]
[392696399,1761832238418,-613.24,0.00014999,2]
[392696400,1761832238428,-613.24,0.00014999,2]
[392696401,1761832238437,-613.24,0.00014999,2]
[392696402,1761832238447,-613.24,0.00014999,2]
[392696403,1761832238456,-613.24,0.00014999,2]
[392696404,1761832238466,-613.24,0.00014999,2]
[392696405,1761832238475,-613.24,0.00014999,2]
[392696406,1761832238485,-613.29840689,0.00014999,2]
[392696407,1761832238495,-500.0,0.00014999,2]
[392696408,1761832238505,-500.0,0.00014999,2]
[392696409,1761832238516,-500.0,0.00014999,2]
[392696410,1761832238527,-500.0,0.00014999,2]
[392696411,1761832238537,-500.0,0.00014999,2]
[392696412,1761832238552,-500.0,0.00014999,2]
[392696413,1761832238563,-500.0,0.00014999,2]
[392696414,1761832238573,-500.0,0.00014999,2]
[392696415,1761832238586,-3114.0,0.00015,2]
[392696416,1761832238598,-5960241.96087057,0.00015,2]
[392696417,1761832238615,-28536.8503689,0.00015,2]
[392696418,1761832238633,-24925.06621538,0.00015,2]
[392696419,1761832238654,-13630.42649735,0.00015,2]
[392696420,1761832238666,-11129.94369394,0.00015,2]
[392696421,1761832238679,-7558.53732012,0.00015,2]
[392696422,1761832238691,-3036.25703379,0.00015,2]
[392696423,1761832238703,-303.05387306,0.00015,2]
[392696424,1761832238715,-27046.218,0.00015,2]
[392696425,1761832238727,-280.5561922,0.00015,2]
[392696426,1761832238741,-21372.43350936,0.00015,2]
[392696444,1761832239469,-1199.9441538,0.00015,2]
[392696445,1761832239481,-18878.4332707,0.00015,2]
[392696446,1761832239554,-12818.53046991,0.00015,2]
[392696447,1761832239650,-2157.7487937,0.00015,2]
[392696448,1761832239663,-591.79336243,0.00015,2]
[392696449,1761832239675,-336.70835803,0.00015,2]
[392696450,1761832239734,-1624.0,0.00015,2]
[392696451,1761832239746,-10789.0,0.00015,2]
[392696452,1761832239757,-482571.11376076,0.00015,2]
[392696453,1761832239766,-2027.6262559,0.00015,2]
[392696454,1761832239775,-7893.39635318,0.00015,2]
[392696455,1761832239784,-104915.5485855,0.00015,2]
[392696456,1761832239793,-910037.6827003,0.00015,2]
[392696457,1761832239805,-917.72009819,0.00015,2]
[392696458,1761832239816,-677.47296978,0.00015,2]
[392696474,1761832242505,-1040.11975504,0.00015,2]
[392696475,1761832242517,-205371.29227695,0.00015,2]
[392696476,1761832242529,-477.598,0.00015,2]
[392696477,1761832242540,-278.80165767,0.00015,2]
[392696478,1761832242605,-1081.0,0.00015,2]
[392696479,1761832242687,-2978.78951736,0.00015,2]
[392696480,1761832242698,-3857.03560505,0.00015,2]
[392696485,1761832245424,-802.53483761,0.00015,2]
[392696486,1761832245435,-617.22499802,0.00015,2]
[392696487,1761832245511,-21570.3876523,0.00015,2]
[392696488,1761832245594,-3299.19524776,0.00015,2]
[392696492,1761832269967,1905.97,0.00014141,2]
[392696500,1761832592663,150.0,0.000315,120]
[392696503,1761832969508,999.0,0.00014041,3]
[392696504,1761833109943,150.0,0.00013488,2]
[392696505,1761833110393,150.0,0.00014087,2]
[392696506,1761833110443,150.0,0.00013787,2]
[392696507,1761833114284,150.62331931,0.00013488,2]
[392696508,1761833118862,154.93883718,0.00013488,2]
[392696509,1761833118920,194.59024156,0.00013488,2]
[392696510,1761833118995,150.0,0.00013488,2]
[392696511,1761833119085,150.0,0.00013488,2]
[392696512,1761833121423,264.99211853,0.00013488,2]
[392696513,1761833124793,152.72175361,0.00013488,2]
[392696514,1761833126149,153.70308771,0.00013488,2]
[392696515,1761833126204,242.1708611,0.00013488,2]
[392696516,1761833131333,171.11358303,0.00013488,2]
[392696517,1761833132707,154.21326682,0.00013488,2]
[392696518,1761833194345,8806.64,0.00031507,120]
[392696519,1761833252901,1000.0,0.00014041,2]
[392696523,1761833345584,250.0,0.00014041,2]
[392696573,1761833431715,-150.0,0.00014387,2]
[392696575,1761833431724,-865.41795981,0.00014408,2]
[392696577,1761833431734,-250.0,0.0001443,2]
[392696579,1761833431745,-168.0,0.00014473,2]
[392696581,1761833431755,-166.68,0.00014565,2]
[392696583,1761833431764,-168.0,0.00014592,2]
[392696584,1761833431774,-168.0,0.00014658,2]
[392696585,1761833431783,-168.0,0.00014668,2]
[392696586,1761833431793,-150.0,0.00014687,2]
[392696587,1761833431802,-1344.0,0.000147,2]
[392696588,1761833431812,-324.62131,0.0001485,2]
[392696589,1761833431822,-200.0,0.0001488,2]
[392696590,1761833431836,-1051.0,0.00014898,2]
[392696591,1761833431845,-300.0,0.00014898,2]
[392696592,1761833431855,-1200.0,0.00014898,2]
[392696593,1761833431864,-150.0,0.00014899,2]
[392696594,1761833431874,-300.0,0.00014899,2]
[392696595,1761833431884,-300.0,0.00014899,2]
[392696596,1761833431893,-454.85723819,0.000149,2]
[392696597,1761833431905,-1888.5,0.000149,2]
[392696598,1761833431917,-288.2,0.000149,2]
[392696603,1761833431993,-1887.5,0.000149,2]
[392696607,1761833432030,-1324.85183687,0.000149,2]
[392696609,1761833432040,-150.0,0.000149,2]
[392696611,1761833432050,-548.57,0.000149,2]
[392696612,1761833432059,-165.21219716,0.000149,2]
[392696614,1761833432068,-160.66350308,0.000149,2]
[392696616,1761833432078,-548.57,0.000149,2]
[392696618,1761833432087,-168.81,0.000149,2]
[392696620,1761833432096,-1000.0,0.000149,2]
[392696622,1761833432110,-717.5921734,0.000149,2]
[392696624,1761833432120,-168.0,0.00014953,2]
[392696626,1761833432130,-500.0,0.0001497,2]
[392696627,1761833432140,-1000.0,0.0001497,2]
[392696629,1761833432150,-500.0,0.00014973,2]
[392696631,1761833432165,-500.0,0.00014973,2]
[392696633,1761833432174,-504.90191521,0.00014973,2]
[392696635,1761833432183,-168.0,0.00014986,2]
[392696636,1761833432192,-150.0,0.00014986,2]
[392696638,1761833432202,-282.12448269,0.0001499,2]
[392696640,1761833432211,-282.12448269,0.0001499,2]
[392696642,1761833432221,-151.0,0.00014991,2]
[392696644,1761833432232,-151.0,0.00014991,2]
[392696647,1761833432242,-151.0,0.00014991,2]
[392696649,1761833432253,-151.0,0.00014991,2]
[392696651,1761833432262,-151.0,0.00014991,2]
[392696652,1761833432272,-151.0,0.00014991,2]
[392696654,1761833432282,-151.0,0.00014991,2]
[392696656,1761833432291,-151.0,0.00014991,2]
[392696658,1761833432301,-151.0,0.00014991,2]
[392696660,1761833432310,-151.0,0.00014991,2]
[392696662,1761833432321,-151.0,0.00014991,2]
[392696664,1761833432331,-151.0,0.00014991,2]
[392696665,1761833432341,-151.0,0.00014991,2]
[392696667,1761833432350,-151.0,0.00014991,2]
[392696669,1761833432359,-151.0,0.00014991,2]
[392696671,1761833432368,-151.0,0.00014991,2]
[392696673,1761833432379,-151.0,0.00014991,2]
[392696675,1761833432388,-151.0,0.00014991,2]
[392696677,1761833432397,-151.0,0.00014991,2]
[392696679,1761833432406,-500.0,0.00014991,2]
[392696681,1761833432415,-500.0,0.00014991,2]
[392696682,1761833432424,-151.0,0.00014991,2]
[392696684,1761833432434,-500.0,0.00014991,2]
[392696686,1761833432443,-337.22623762,0.00014991,2]
[392696688,1761833432452,-697.03746617,0.00014991,2]
[392696690,1761833432461,-515.33176881,0.00014991,2]